bitfinex/quotes_SOLUSD_20250306
["timestamp","ask_amount","ask_price","bid_price","bid_amount"]
[1741275603936,39.30557069,150.15,150.1,0.033]
[1741275604233,30.14177069,150.11,150.1,0.033]
[1741275604738,60.28354138,150.11,149.99,12.7719]
[1741275605034,30.14177069,150.05,149.99,12.7719]
[1741275605236,30.14177069,150.04,149.99,12.7719]
[1741275605432,110.94177069,150.08,149.99,6.1051]
[1741275605613,6.6635,150.07,150.0,0.14216157]
[1741275605817,6.6635,150.07,150.03,312.0]
[1741275606017,30.14177069,150.04,150.03,312.0]
[1741275606228,30.14177069,150.04,150.03,312.14216157]
[1741275606557,30.14177069,150.04,149.99,0.033]
[1741275606742,30.14177069,150.01,149.99,0.033]
[1741275606939,2.97610983,150.06,149.99,0.033]
[1741275607236,30.14177069,150.05,149.99,30.17477069]
[1741275607548,30.14177069,150.05,149.99,0.033]
[1741275607837,30.14177069,150.02,149.99,0.033]
[1741275608412,30.14177069,150.01,149.99,0.033]
[1741275608644,30.14177069,150.0,149.99,0.033]
[1741275608941,30.14177069,150.02,149.99,0.033]
[1741275609242,30.14177069,150.04,149.99,0.033]
[1741275609418,95.0227,150.09,150.01,30.28393226]
[1741275609743,6.664,150.06,150.05,312.0]
[1741275610049,6.664,150.06,149.99,6.84206157]
[1741275610214,87.4634,150.08,149.99,6.84206157]
[1741275610409,30.14177069,150.06,150.01,0.14216157]
[1741275610846,110.94177069,150.08,150.03,0.14216157]
[1741275611348,117.60497069,150.08,150.03,0.14216157]
[1741275611846,110.94177069,150.08,150.04,0.14216157]
[1741275612045,80.8,150.08,150.04,0.14216157]
[1741275612211,30.14177069,150.09,150.04,0.14216157]
[1741275612416,36.80447069,150.09,150.04,0.14216157]
[1741275612617,30.14177069,150.09,150.04,0.14216157]
[1741275612839,195.40407069,150.1,150.04,0.14216157]
[1741275613041,188.74177069,150.1,150.07,312.0]
[1741275613233,158.6,150.1,150.08,0.14216157]
[1741275613630,30.14177069,150.13,150.08,0.14216157]
[1741275613829,30.14177069,150.13,150.08,6.80506157]
[1741275614438,87.4599,150.16,150.1,0.14216157]
[1741275614642,158.66,150.18,150.13,0.14216157]
[1741275614944,30.14177069,150.17,150.13,0.14216157]
[1741275615245,188.80177069,150.18,150.13,0.14216157]
[1741275615446,165.3187,150.18,150.13,0.14216157]
[1741275615631,30.14177069,150.15,150.13,0.14216157]
[1741275615831,30.14177069,150.15,150.1,0.14216157]
[1741275616032,30.14177069,150.16,150.1,30.28393226]
[1741275616244,30.14177069,150.16,150.1,36.94593226]
[1741275616446,30.14177069,150.15,150.14,312.0]
[1741275616632,6.6592,150.17,150.14,312.0]
[1741275616835,30.14177069,150.16,150.14,312.0]
[1741275617248,188.80177069,150.18,150.15,0.14216157]
[1741275617545,158.16,150.18,150.15,0.14216157]
[1741275617716,30.17177069,150.2,150.16,30.28393226]
[1741275617717,0.03,150.2,150.16,30.28393226]
[1741275617923,0.03,150.2,150.17,30.14177069]
[1741275618249,0.03,150.2,150.17,0.14216157]
[1741275618547,0.03,150.2,150.17,30.28393226]
[1741275619246,0.03,150.2,150.19,30.28393226]
[1741275620327,0.03,150.2,150.19,342.28393226]
[1741275620651,0.03,150.2,150.19,312.14216157]
[1741275620941,0.03,150.2,150.19,312.0]
[1741275621143,0.03,150.2,150.19,312.14216157]
[1741275621340,0.03,150.2,150.19,342.28393226]
[1741275621952,0.03,150.2,150.19,312.14216157]
[1741275622247,0.03,150.2,150.19,312.0]
[1741275622620,0.03,150.2,150.19,312.14216157]
[1741275623328,30.14177069,150.22,150.2,0.14216157]
[1741275623519,30.14177069,150.23,150.2,0.14216157]
[1741275623737,23.296,150.24,150.2,0.14216157]
[1741275623738,6.656,150.24,150.2,0.14216157]
[1741275623939,87.4556,150.25,150.2,30.28393226]
[1741275624152,8.1829,150.34,150.2,30.28393226]
[1741275624153,30.14177069,150.28,150.23,0.14216157]
[1741275624522,36.79517069,150.3,150.25,0.14216157]
[1741275624956,6.6534,150.3,150.25,0.14216157]
[1741275625250,6.6534,150.3,150.24,0.14216157]
[1741275625251,30.14177069,150.29,150.24,0.14216157]
[1741275625660,6.6484,150.41,150.31,0.42648471]
[1741275625844,16.6184,150.44,150.39,0.14216157]
[1741275626017,6.6467,150.45,150.39,0.14216157]
[1741275626222,50.45459889,150.46,150.39,30.28393226]
[1741275626436,20.3128282,150.46,150.41,30.28393226]
[1741275626831,20.3128282,150.46,150.45,30.28393226]
[1741275627246,20.3128282,150.46,150.45,37.68177069]
[1741275627445,20.3128282,150.46,150.45,37.82393226]
[1741275628025,20.3128282,150.5,150.46,0.14216157]
[1741275628646,20.3128282,150.5,150.45,14.1864]
[1741275628647,20.3128282,150.5,150.49,55.3485033]
[1741275628840,20.3128282,150.5,150.49,0.14216157]
[1741275629069,20.3128282,150.5,150.49,55.3485033]
[1741275629253,20.3128282,150.5,150.49,0.14216157]
[1741275629434,20.3128282,150.5,150.49,55.3485033]
[1741275629756,20.3128282,150.5,150.49,0.14216157]
[1741275630054,20.3128282,150.5,150.45,55.20634173]
[1741275630227,55.20634173,150.48,150.37,7.54]
[1741275630422,55.20634173,150.47,150.38,6.86264235]
[1741275630654,55.20634173,150.48,150.42,55.20634173]
[1741275630958,55.20634173,150.49,150.44,0.14216157]
[1741275631151,20.3128282,150.5,150.44,0.14216157]
[1741275631152,55.20634173,150.47,150.44,0.14216157]
[1741275631454,55.20634173,150.48,150.41,55.20634173]
[1741275631755,55.20634173,150.49,150.42,55.20634173]
[1741275632048,20.3128282,150.5,150.43,0.14216157]
[1741275632049,55.20634173,150.48,150.43,0.14216157]
[1741275632258,55.20634173,150.47,150.37,7.54]
[1741275632422,55.20634173,150.45,150.36,6.071]
[1741275632626,55.20634173,150.45,150.39,55.20634173]
[1741275633362,55.20634173,150.45,150.4,0.14216157]
[1741275633536,55.20634173,150.45,150.39,367.20634173]
[1741275633850,55.20634173,150.41,150.29,6.1541]
[1741275634038,80.8,150.45,150.34,55.20634173]
[1741275634235,25.54622314,150.46,150.32,55.20634173]
[1741275634236,55.20634173,150.38,150.32,55.20634173]
[1741275634442,158.4,150.4,150.33,55.20634173]
[1741275634650,55.20634173,150.39,150.33,55.20634173]
[1741275635252,158.4,150.4,150.34,55.20634173]
[1741275635465,158.4,150.4,150.35,0.14216157]
[1741275635762,55.20634173,150.39,150.34,0.14216157]
[1741275636127,158.4,150.4,150.36,0.14216157]
[1741275636327,165.049,150.4,150.36,0.14216157]
[1741275636524,55.20634173,150.39,150.36,0.14216157]
[1741275636752,55.20634173,150.38,150.32,55.20634173]
[1741275636926,165.049,150.4,150.31,55.20634173]
[1741275637122,55.20634173,150.38,150.29,13.6941]
[1741275637327,55.20634173,150.37,150.29,6.1541]
[1741275637542,55.20634173,150.37,150.24,18.64964886]
[1741275637543,55.20634173,150.33,150.24,18.64964886]
[1741275637754,80.8,150.36,150.24,55.20634173]
[1741275637923,80.8,150.36,150.27,55.20634173]
[1741275638129,80.8,150.36,150.33,21.8642549]
[1741275638325,55.20634173,150.34,150.33,21.8642549]
[1741275638547,55.20634173,150.34,150.33,5.49e-05]
[1741275638753,55.20634173,150.34,150.24,55.20634173]
[1741275638924,55.20634173,150.31,150.25,55.20634173]
[1741275639127,55.20634173,150.32,150.27,0.14216157]
[1741275639349,55.20634173,150.33,150.27,55.3485033]
[1741275639556,55.20634173,150.34,150.28,0.14216157]
[1741275639736,55.20634173,150.33,150.29,312.0]
[1741275640063,55.20634173,150.33,150.3,0.14216157]
[1741275640350,6.6511,150.35,150.29,312.0]
[1741275640351,6.6529,150.31,150.29,312.0]
[1741275640854,55.20634173,150.3,150.23,55.20634173]
[1741275641154,55.20634173,150.28,150.22,55.20634173]
[1741275641342,55.20634173,150.27,150.21,55.20634173]
[1741275641540,7.54,150.3,150.21,55.20634173]
[1741275641749,55.20634173,150.27,150.22,0.14216157]
[1741275642253,55.20634173,150.26,150.18,18.64964886]
[1741275642459,55.20634173,150.26,150.21,0.14216157]
[1741275642848,55.20634173,150.27,150.21,55.3485033]
[1741275643351,165.0538,150.29,150.23,0.14216157]
[1741275643557,220.26014173,150.29,150.24,0.14216157]
[1741275643859,236.89464173,150.29,150.24,312.14216157]
[1741275644455,165.0538,150.29,150.26,0.14216157]
[1741275645334,181.6883,150.29,150.24,0.14216157]
[1741275645534,236.89464173,150.29,150.24,0.14216157]
[1741275645734,55.20634173,150.28,150.24,0.14216157]
[1741275646261,236.89464173,150.29,150.24,0.14216157]
[1741275646646,181.6883,150.29,150.25,0.14216157]
[1741275646848,165.0538,150.29,150.25,0.14216157]
[1741275647040,181.6883,150.29,150.25,0.14216157]
[1741275647236,165.0538,150.29,150.25,55.3485033]
[1741275647452,165.0538,150.29,150.28,312.14216157]
[1741275648366,158.4,150.29,150.28,0.14216157]
[1741275648578,16.6319,150.32,150.28,0.14216157]
[1741275648579,6.6515,150.34,150.29,0.14216157]
[1741275649073,6.6515,150.34,150.27,25.30424886]
[1741275649074,6.6507,150.36,150.33,0.14216157]
[1741275649576,158.44,150.37,150.35,55.3485033]
[1741275649958,55.20634173,150.42,150.37,0.14216157]
[1741275650556,6.6484,150.41,150.37,0.14216157]
[1741275650873,61.85474173,150.41,150.35,0.14216157]
[1741275651057,61.85474173,150.41,150.35,55.3485033]
[1741275651058,78.47594173,150.41,150.35,55.3485033]
[1741275651258,55.20634173,150.38,150.29,13.7998]
[1741275651456,55.20634173,150.37,150.36,312.0]
[1741275651850,55.20634173,150.37,150.29,6.2598]
[1741275652043,55.20634173,150.34,150.29,6.2598]
[1741275652373,23.2758,150.37,150.3,55.20634173]
[1741275652546,23.2758,150.37,150.31,0.14216157]
[1741275652750,55.20634173,150.35,150.3,0.14216157]
[1741275652955,55.20634173,150.35,150.27,18.64964886]
[1741275653145,55.20634173,150.36,150.3,55.20634173]
[1741275653344,23.2758,150.37,150.27,18.64964886]
[1741275653549,55.20634173,150.35,150.29,55.20634173]
[1741275653762,55.20634173,150.35,150.3,0.14216157]
[1741275653946,6.6515,150.34,150.3,0.14216157]
[1741275654462,6.6515,150.34,150.27,25.30424886]
[1741275654656,6.6515,150.34,150.3,0.14216157]
[1741275654856,6.6502,150.37,150.33,0.14216157]
[1741275655157,78.48214173,150.37,150.33,0.14216157]
[1741275655479,55.20634173,150.35,150.3,18.79181043]
[1741275656047,6.6515,150.34,150.3,18.79181043]
[1741275656268,61.85784173,150.34,150.29,0.14216157]
[1741275656756,61.85784173,150.34,150.27,0.14216157]
[1741275656956,61.85784173,150.34,150.29,0.14216157]
[1741275657273,55.20634173,150.33,150.29,0.14216157]
[1741275657491,55.20634173,150.32,150.26,55.20634173]
[1741275657654,55.20634173,150.32,150.26,18.64964886]
[1741275657856,55.20634173,150.31,150.27,0.14216157]
[1741275658255,55.20634173,150.31,150.28,312.0]
[1741275658458,55.20634173,150.3,150.28,312.0]
[1741275658763,55.20634173,150.3,150.24,61.51454173]
[1741275658764,55.20634173,150.32,150.24,0.033]
[1741275658962,55.20634173,150.27,150.24,0.033]
[1741275659169,55.20634173,150.25,150.24,0.033]
[1741275659852,55.20634173,150.28,150.24,0.033]
[1741275660058,6.6538,150.29,150.24,18.68264886]
[1741275660258,7.54,150.3,150.24,74.03115216]
[1741275660259,6.6534,150.3,150.24,74.03115216]
[1741275660548,61.85974173,150.3,150.26,0.14216157]
[1741275660761,6.6524,150.32,150.28,18.79181043]
[1741275660956,6.6524,150.32,150.28,55.3485033]
[1741275661262,61.85874173,150.32,150.28,0.14216157]
[1741275661583,55.20634173,150.31,150.28,0.14216157]
[1741275661885,61.85874173,150.32,150.3,312.0]
[1741275662063,55.20634173,150.31,150.3,312.0]
[1741275662267,78.49144173,150.31,150.28,0.14216157]
[1741275662463,23.2851,150.31,150.24,0.033]
[1741275662657,61.85924173,150.31,150.25,0.14216157]
[1741275662980,61.85924173,150.31,150.24,55.23934173]
[1741275662981,55.20634173,150.26,150.24,0.033]
[1741275663280,55.20634173,150.25,150.24,0.0001]
[1741275663676,110.41268346,150.25,150.24,0.0001]
[1741275664185,61.86184173,150.25,150.24,0.0001]
[1741275664480,117.06818346,150.25,150.24,0.0001]
[1741275664987,81.08432314,150.24,150.16,0.033]
[1741275665153,81.08432314,150.24,150.16,312.033]
[1741275665154,55.20634173,150.17,150.16,312.033]
[1741275665349,55.20634173,150.17,150.16,0.033]
[1741275666276,55.20634173,150.1,150.05,6.5398]
[1741275666469,55.20634173,150.09,150.05,6.5398]
[1741275666976,55.20634173,150.07,150.0,6.2886]
[1741275667154,55.20634173,150.05,150.0,6.2886]
[1741275667462,0.28432314,150.13,150.0,6.2886]
[1741275667463,55.20634173,150.04,150.0,6.2886]
[1741275667649,7.54,150.09,150.01,0.17516157]
[1741275667856,7.54,150.09,150.01,0.033]
[1741275667857,55.20634173,150.06,150.01,0.033]
[1741275668156,55.20634173,150.04,150.01,0.17516157]
[1741275668372,7.54,150.09,150.03,312.0]
[1741275668576,7.54,150.09,150.03,367.20634173]
[1741275668577,62.74634173,150.09,150.03,367.20634173]
[1741275670169,55.20634173,150.08,150.03,18.79181043]
[1741275670366,55.20634173,150.06,150.02,0.14216157]
[1741275670792,55.20634173,150.05,150.01,0.033]
[1741275670964,213.76634173,150.08,150.01,0.033]
[1741275671165,55.20634173,150.03,150.01,0.033]
[1741275671361,158.56,150.08,150.01,0.033]
[1741275671574,55.20634173,150.04,150.01,0.033]
[1741275671775,158.56,150.08,150.02,312.0]
[1741275671983,55.20634173,150.03,150.02,312.0]
[1741275672478,61.87164173,150.03,150.02,312.0]
[1741275673273,80.8,150.02,150.01,0.033]
[1741275673591,55.20634173,150.02,150.01,0.033]
[1741275674186,110.6970066,150.02,150.01,0.0001]
[1741275674365,61.87204173,150.02,150.01,0.0001]
[1741275674962,117.3627066,150.02,150.01,0.0001]
[1741275675166,0.28432314,150.01,149.99,0.11299989]
[1741275675366,110.6970066,150.0,149.99,9.989e-05]
[1741275675873,0.28432314,149.99,149.94,0.033]
[1741275676078,55.20634173,149.95,149.94,0.033]
[1741275676283,228.03514173,149.95,149.94,0.033]
[1741275678287,228.03514173,149.95,149.94,0.0001]
[1741275678288,283.5258066,149.95,149.94,0.0001]
[1741275678667,228.31946487,149.95,149.94,0.0001]
[1741275680199,228.03514173,149.95,149.94,0.0001]
[1741275681577,213.82634173,149.95,149.94,0.0001]
[1741275681782,158.62,149.95,149.94,0.0001]
[1741275681997,158.62,149.95,149.94,0.14226157]
[1741275682194,158.62,149.95,149.94,55.3486033]
[1741275682390,158.62,149.95,149.94,0.14226157]
[1741275682587,158.62,149.95,149.94,0.0001]
[1741275683182,55.20634173,150.01,149.95,18.79181043]
[1741275683381,220.65174173,150.03,149.99,312.0]
[1741275683578,165.4453,150.03,149.99,312.0]
[1741275683794,165.4453,150.03,149.98,55.3485033]
[1741275684112,165.4453,150.03,149.98,0.14216157]
[1741275684113,55.20634173,150.02,149.98,0.14216157]
[1741275684307,55.20634173,150.01,149.95,55.20634173]
[1741275684603,55.20634173,150.0,149.96,0.14216157]
[1741275684784,55.20634173,150.01,149.96,0.14216157]
[1741275685104,182.1086,150.03,149.96,55.3485033]
[1741275685105,136.00634173,150.02,149.96,55.3485033]
[1741275685305,80.8,150.02,149.96,0.14216157]
[1741275685507,55.20634173,150.0,149.95,18.79181043]
[1741275685908,6.6662,150.01,149.95,55.3485033]
[1741275686206,80.8,150.02,149.97,55.3485033]
[1741275686409,87.4658,150.02,149.97,55.3485033]
[1741275686613,142.67214173,150.02,149.97,18.79181043]
[1741275686809,142.67214173,150.02,149.99,312.0]
[1741275687305,142.67214173,150.02,149.97,18.79181043]
[1741275687493,87.4658,150.02,149.97,18.79181043]
[1741275688101,220.65174173,150.03,149.98,18.64964886]
[1741275688605,55.20634173,150.0,149.95,18.79181043]
[1741275688806,55.20634173,150.01,149.95,73.99815216]
[1741275689124,55.20634173,150.01,149.94,0.0001]
[1741275689125,0.03,150.0,149.94,55.20644173]
[1741275689311,55.23634173,150.0,149.95,18.64964886]
[1741275689612,6.6671,149.99,149.96,0.14216157]
[1741275689808,0.03,150.0,149.96,73.99815216]
[1741275690107,6.6968,150.0,149.97,0.14216157]
[1741275690291,6.6968,150.0,149.99,312.0]
[1741275690815,61.90314173,150.0,149.99,312.0]
[1741275690993,214.57608346,150.0,149.94,0.0001]
[1741275691194,55.20634173,149.95,149.94,0.0001]
[1741275691395,61.87514173,149.95,149.94,0.0001]
[1741275692205,80.8,149.94,149.89,0.033]
[1741275692513,119.43174173,149.95,149.89,0.033]
[1741275692514,80.8,149.93,149.89,0.033]
[1741275692691,55.20634173,149.9,149.89,0.033]
[1741275693101,55.20634173,149.9,149.88,0.033]
[1741275693309,55.20634173,149.89,149.88,0.0001]
[1741275693520,61.87784173,149.89,149.88,0.0001]
[1741275693715,61.87784173,149.89,149.84,0.033]
[1741275693897,55.20634173,149.85,149.84,312.0]
[1741275694303,55.20634173,149.85,149.79,0.033]
[1741275694506,55.20634173,149.82,149.79,0.033]
[1741275695428,61.88104173,149.82,149.79,0.033]
[1741275695624,55.20634173,149.82,149.79,0.033]
[1741275695827,6.6745,149.83,149.79,0.033]
[1741275695828,61.88084173,149.83,149.79,0.033]
[1741275696127,55.20634173,149.83,149.79,0.033]
[1741275696658,55.20634173,149.8,149.79,0.033]
[1741275697398,6.6742,149.83,149.79,312.033]
[1741275697713,14.2139,149.84,149.79,312.033]
[1741275697899,69.42024173,149.84,149.79,312.033]
[1741275698105,14.2139,149.84,149.79,312.033]
[1741275698408,14.2139,149.84,149.8,0.14216157]
[1741275698409,55.20634173,149.83,149.8,0.14216157]
[1741275698900,69.42024173,149.84,149.8,0.14216157]
[1741275699100,7.56,149.88,149.8,0.14216157]
[1741275699308,55.20634173,149.86,149.81,0.14216157]
[1741275699534,55.20634173,149.87,149.83,0.14216157]
[1741275699722,55.20634173,149.89,149.83,55.3485033]
[1741275700631,158.78,149.91,149.86,18.64964886]
[1741275700941,158.78,149.91,149.87,0.14216157]
[1741275701423,158.78,149.91,149.89,0.14216157]
[1741275702016,220.65704173,149.91,149.86,18.79181043]
[1741275702209,220.65704173,149.91,149.89,312.0]
[1741275702810,55.20634173,149.9,149.89,312.0]
[1741275703309,220.65704173,149.91,149.89,312.14216157]
[1741275703724,213.98634173,149.91,149.89,312.14216157]
[1741275703919,55.20634173,149.9,149.89,312.0]
[1741275704211,165.4507,149.91,149.85,0.14216157]
[1741275704531,55.20634173,149.89,149.85,0.14216157]
[1741275704700,55.20634173,149.9,149.85,0.14216157]
[1741275704905,158.78,149.91,149.87,18.79181043]
[1741275705330,165.4506,149.91,149.87,18.79181043]
[1741275705533,55.20634173,149.89,149.83,18.79181043]
[1741275705827,158.78,149.91,149.83,18.79181043]
[1741275706037,55.20634173,149.89,149.83,18.79181043]
[1741275706211,55.20634173,149.87,149.83,18.64964886]
[1741275706405,55.20634173,149.87,149.82,6.3097]
[1741275706609,80.8,149.9,149.83,73.85599059]
[1741275706835,136.00634173,149.9,149.84,55.20634173]
[1741275707034,55.20634173,149.89,149.85,312.14216157]
[1741275707528,6.672,149.88,149.84,0.14216157]
[1741275707932,87.4711,149.9,149.86,18.79181043]
[1741275708137,55.20634173,149.89,149.84,18.79181043]
[1741275708320,61.87744173,149.9,149.84,73.99815216]
[1741275708641,36.65694361,149.9,149.84,30.12800518]
[1741275708833,36.65694361,149.9,149.86,0.14216157]
[1741275709334,59.97168722,149.87,149.82,6.3097]
[1741275709543,6.6746,149.82,149.79,0.033]
[1741275709910,6.6746,149.82,149.79,30.01884361]
[1741275710111,29.98584361,149.86,149.8,48.63549247]
[1741275710411,6.6728,149.86,149.82,18.79181043]
[1741275710606,0.04,149.93,149.84,48.77765404]
[1741275710607,6.6724,149.88,149.84,48.77765404]
[1741275710840,6.6724,149.88,149.84,18.79181043]
[1741275711227,6.6724,149.88,149.83,18.79181043]
[1741275711228,36.65824361,149.88,149.83,18.79181043]
[1741275711433,29.98584361,149.87,149.83,18.79181043]
[1741275711737,6.6728,149.86,149.8,29.98584361]
[1741275711925,29.98584361,149.85,149.79,48.66849247]
[1741275712115,29.98584361,149.83,149.79,0.033]
[1741275712439,29.98584361,149.82,149.79,0.033]
[1741275712621,29.98584361,149.83,149.79,0.17516157]
[1741275712934,29.98584361,149.83,149.79,0.033]
[1741275713333,29.98584361,149.82,149.79,0.033]
[1741275713539,29.98584361,149.82,149.79,0.17516157]
[1741275713748,6.6751,149.81,149.79,0.17516157]
[1741275714045,6.6751,149.81,149.79,312.033]
[1741275714046,36.66094361,149.81,149.79,312.033]
[1741275714214,29.98584361,149.8,149.79,312.033]
[1741275714636,36.66094361,149.81,149.79,312.033]
[1741275715142,6.6751,149.81,149.79,312.033]
[1741275715326,80.8,149.85,149.8,0.14216157]
[1741275715327,6.6737,149.84,149.8,0.14216157]
[1741275715515,53.34394361,149.84,149.8,0.14216157]
[1741275716013,28.70906859,149.84,149.79,312.033]
[1741275716214,29.98584361,149.81,149.79,312.033]
[1741275716424,29.98584361,149.8,149.79,0.033]
[1741275716661,80.8,149.82,149.79,0.033]
[1741275716943,6.6734,149.85,149.8,48.63549247]
[1741275717447,36.65924361,149.85,149.79,30.01884361]
[1741275717620,29.98584361,149.83,149.79,0.033]
[1741275717821,6.6746,149.82,149.79,0.033]
[1741275719039,36.66044361,149.82,149.79,0.033]
[1741275719246,29.98584361,149.8,149.79,0.033]
[1741275719433,6.6746,149.82,149.79,0.033]
[1741275719635,6.6746,149.82,149.79,18.82481043]
[1741275719813,6.6742,149.83,149.79,18.82481043]
[1741275720018,29.98584361,149.82,149.79,0.17516157]
[1741275720318,29.98584361,149.81,149.79,0.033]
[1741275720524,53.34554361,149.83,149.79,0.033]
[1741275720816,6.6742,149.83,149.8,0.14216157]
[1741275721022,6.6742,149.83,149.8,18.79181043]
[1741275721427,36.6391642,149.89,149.82,0.14216157]
[1741275721428,29.98584361,149.87,149.82,0.14216157]
[1741275721623,117.45784361,149.88,149.82,30.12800518]
[1741275721825,53.34084361,149.86,149.82,0.14216157]
[1741275722242,53.34084361,149.86,149.79,18.82481043]
[1741275722243,110.78584361,149.85,149.79,18.82481043]
[1741275722444,80.8,149.85,149.82,0.14216157]
[1741275722625,6.6728,149.86,149.82,0.14216157]
[1741275722825,6.6728,149.86,149.84,0.14216157]
[1741275723032,29.98584361,149.85,149.79,0.033]
[1741275723234,29.98584361,149.82,149.79,0.033]
[1741275723435,80.8,149.84,149.8,0.14216157]
[1741275723849,29.98584361,149.87,149.82,0.14216157]
[1741275724150,53.34084361,149.86,149.82,0.14216157]
[1741275724352,29.98584361,149.85,149.8,0.14216157]
[1741275724750,36.65864361,149.86,149.8,0.14216157]
[1741275724925,29.98584361,149.85,149.79,0.17516157]
[1741275725259,29.98584361,149.85,149.79,18.82481043]
[1741275725435,36.65864361,149.86,149.79,48.81065404]
[1741275725636,29.98584361,149.87,149.81,18.79181043]
[1741275725836,29.98584361,149.87,149.81,48.77765404]
[1741275726046,29.98584361,149.86,149.85,0.14216157]
[1741275726359,80.8,149.85,149.8,48.63549247]
[1741275726563,29.98584361,149.86,149.81,18.79181043]
[1741275726746,6.6721,149.88,149.81,0.14216157]
[1741275726747,29.98584361,149.84,149.81,0.14216157]
[1741275726949,29.98584361,149.83,149.79,0.033]
[1741275727349,29.98584361,149.84,149.79,0.033]
[1741275727552,80.8,149.86,149.79,0.033]
[1741275727553,110.78584361,149.83,149.79,0.033]
[1741275727731,29.98584361,149.81,149.79,0.033]
[1741275728058,117.46044361,149.82,149.79,0.033]
[1741275728269,80.8,149.82,149.79,0.033]
[1741275728863,80.8,149.82,149.81,0.14216157]
[1741275729241,80.8,149.82,149.81,312.14216157]
[1741275729437,110.78584361,149.82,149.79,0.033]
[1741275729643,29.98584361,149.8,149.79,0.033]
[1741275729944,80.8,149.81,149.79,0.033]
[1741275730338,158.94,149.84,149.8,48.77765404]
[1741275730543,158.94,149.84,149.82,0.14216157]
[1741275731162,158.94,149.84,149.79,0.033]
[1741275731337,158.94,149.84,149.81,18.79181043]
[1741275731740,165.6138,149.84,149.81,18.79181043]
[1741275731946,158.94,149.84,149.81,18.79181043]
[1741275732153,165.6139,149.84,149.81,18.79181043]
[1741275732350,165.6139,149.84,149.8,0.14216157]
[1741275732547,29.98584361,149.83,149.79,0.033]
[1741275733063,195.59974361,149.84,149.79,0.033]
[1741275733439,29.98584361,149.83,149.79,0.033]
[1741275733752,165.6139,149.84,149.79,0.033]
[1741275734064,195.59974361,149.84,149.79,0.033]
[1741275734435,158.94,149.84,149.82,18.79181043]
[1741275734636,158.94,149.84,149.82,48.77765404]
[1741275735364,80.8,149.89,149.84,18.79181043]
[1741275735551,80.8,149.89,149.88,312.14216157]
[1741275736256,80.8,149.89,149.88,318.81416157]
[1741275736456,0.03,149.9,149.89,0.14216157]
[1741275737167,0.03,149.9,149.88,0.14216157]
[1741275737355,36.68694361,149.9,149.88,0.14216157]
[1741275737545,29.98584361,149.89,149.82,29.98584361]
[1741275737744,6.7011,149.9,149.82,29.98584361]
[1741275737745,110.78584361,149.88,149.83,18.64964886]
[1741275737955,117.45824361,149.88,149.83,18.64964886]
[1741275738551,87.4724,149.88,149.84,0.14216157]
[1741275738869,87.4721,149.88,149.84,0.14216157]
[1741275739069,87.4721,149.88,149.83,0.14216157]
[1741275739272,117.45794361,149.88,149.83,0.14216157]
[1741275739578,117.45794361,149.88,149.85,312.0]
[1741275739871,80.8,149.88,149.86,0.14216157]
[1741275740173,110.78584361,149.87,149.81,6.472]
[1741275740468,80.8,149.86,149.83,0.14216157]
[1741275741260,80.8,149.86,149.83,30.12800518]
[1741275741569,80.8,149.86,149.83,0.14216157]
[1741275741948,6.6733,149.85,149.83,0.14216157]
[1741275742150,87.4729,149.86,149.83,0.14216157]
[1741275742961,110.78584361,149.85,149.8,0.033]
[1741275743167,80.8,149.85,149.83,312.0]
[1741275743468,110.78584361,149.85,149.83,312.0]
[1741275743856,6.6742,149.83,149.8,0.033]
[1741275744179,29.98584361,149.81,149.8,0.033]
[1741275744943,29.98584361,149.81,149.79,0.033]
[1741275745146,29.98584361,149.8,149.79,0.033]
[1741275745957,6.6755,149.8,149.79,0.033]
[1741275746877,36.66134361,149.8,149.79,0.033]
[1741275747949,6.6755,149.8,149.79,0.033]
[1741275748149,29.98584361,149.8,149.79,0.033]
[1741275748448,29.98584361,149.81,149.79,0.033]
[1741275748654,29.98584361,149.8,149.79,0.033]
[1741275748956,59.97168722,149.8,149.79,0.033]
[1741275749188,66.64718722,149.8,149.79,0.033]
[1741275749550,36.66134361,149.8,149.79,0.033]
[1741275749977,66.93151036,149.8,149.78,0.033]
[1741275750185,66.93151036,149.8,149.74,312.033]